Cogmind - Beta 10.2 @@@ ROGUE MODE // 2021.12.23 @ 00:44:17 Player: User Result: Destroyed by S-43 Plague with Heavy Machine Gun Performance ------------- Evolutions (7) 3500 Regions Visited (16) 3200 Robots Destroyed (74) 370 Value Destroyed (3475) 3475 Prototype IDs (10) 200 Alien Tech Used (0) 0 Bonus (799) 799 TOTAL SCORE: 11544 Bonus ------- High Alert Combat Kills 32 Follower Combat Kills 599 Aligned with FarCom 300 Friendly Fire -132 Cogmind --------- Core Integrity 0/1300 Matter 118/300 Energy 98/100 System Corruption 17% Temperature Cool (0) Movement Core (50) Location -3/Research Parts ------- > --- POWER (3) -------- (None) > --- PROPULSION (4) --- (None) > --- UTILITY (10) ----- Improved Salvage Targeting Computer Improved Core Analyzer > --- WEAPON (4) ------- (None) > --- INVENTORY (4) ---- (None) Peak State ------------ > --- POWER ------------ Particle Reactor Light Particle Reactor Light Particle Reactor > --- PROPULSION ------- Medium Treads Medium Treads Improved Heavy Treads > --- UTILITY ---------- Experimental Thermal Converter Advanced Cryofiber Web Advanced Heat Sink Small Battery Improved Salvage Targeting Computer Advanced Target Analyzer Improved Core Analyzer Layered Heavy Armor Plating Centrium Light Armor Plating > --- WEAPON ----------- Gamma Rifle Railgun Railgun Fusion Bomb Launcher > --- INVENTORY -------- Advanced Heat Sink Improved Propulsion Shielding Antimissile System Advanced Integration Mediator [Rating: 138] Favorites ----------- Power Micro Fission Core Engine Light Angular Momentum Engine Power Core Micro Fission Core Reactor Light Antimatter Reactor Propulsion Flight Unit Treads Improved Treads Leg Myomer Leg Wheel Centrium Wheel Hover Unit Gravmag System Flight Unit Flight Unit Utility Improved Salvage Targeting Computer Device Advanced Heat Sink Storage Compact Battery Processor Improved Salvage Targeting Computer Protection Improved Medium Armor Plating Weapon Greatsword Energy Gun Plasma Rifle Energy Cannon Disruptor Cannon Ballistic Gun KE Penetrator Ballistic Cannon Heavy Gauss Cannon Launcher Fusion Bomb Launcher Special Weapon Plasma Cutter Impact Weapon Heavy Flail Slashing Weapon Greatsword Special Melee Weapon Improved Datajack Build | -11 -10 -10 -10 -9 -8 -7 -7 -7 -6 -5 -5 -5 -4 -4 -4 -3 ------- Run | Scr Mat Min Exi Min Mat Fac Low Low Fac Fac Was Fac Fac Ext Cet Res Slots Evolved 14 | . . . . . 4 2 . . 2 2 . . 2 . . 2 Power 2 | . . . . . 1 . . . . 1 . . . . . . Propulsion 2 | . . . . . 1 1 . . . . . . . . . . Utility 8 | . . . . . 2 1 . . 2 1 . . 1 . . 1 Weapon 2 | . . . . . . . . . . . . . 1 . . 1 Parts Attached 168 | . 12 . 3 . 5 7 4 . 16 5 2 1 27 45 . 41 Power 25 | . 2 . 1 . 1 1 1 . 2 1 . 1 4 6 . 5 Engine 11 | . 2 . 1 . 1 1 1 . 2 1 . . 2 . . . Core 4 | . . . . . . . . . . . . 1 . 3 . . Reactor 10 | . . . . . . . . . . . . . 2 3 . 5 Propulsion 44 | . 4 . . . . 1 1 . 8 . 1 . 7 14 . 8 Treads 7 | . . . . . . . . . . . . . . 4 . 3 Leg 14 | . . . . . . . . . . . . . 3 8 . 3 Wheel 1 | . . . . . . . . . . . . . . . . 1 Hover 8 | . . . . . . . . . 2 . . . 3 2 . 1 Flight 14 | . 4 . . . . 1 1 . 6 . 1 . 1 . . . Utility 57 | . . . 2 . 1 4 2 . 5 4 1 . 8 15 . 15 Device 33 | . . . 2 . . 2 1 . 2 2 . . 5 9 . 10 Storage 4 | . . . . . 1 1 . . . 1 . . . . . 1 Processor 6 | . . . . . . 1 1 . 2 . . . . 1 . 1 Hackware . | . . . . . . . . . . . . . . . . . Protection 14 | . . . . . . . . . 1 1 1 . 3 5 . 3 Artifact . | . . . . . . . . . . . . . . . . . Weapon 42 | . 6 . . . 3 1 . . 1 . . . 8 10 . 13 Energy Gun 16 | . 3 . . . 1 . . . . . . . 5 3 . 4 Energy Cannon 3 | . . . . . . . . . . . . . . 2 . 1 Ballistic Gun 6 | . 1 . . . . . . . . . . . . 2 . 3 Ballistic Cannon 1 | . . . . . . . . . . . . . 1 . . . Launcher 8 | . 2 . . . 1 . . . . . . . . . . 5 Special Weapon 2 | . . . . . . . . . . . . . 1 1 . . Impact Weapon 1 | . . . . . 1 . . . . . . . . . . . Slashing Weapon 4 | . . . . . . 1 . . 1 . . . 1 1 . . Piercing Weapon . | . . . . . . . . . . . . . . . . . Special Melee Weapon 1 | . . . . . . . . . . . . . . 1 . . Unidentified Prototypes 8 | . . . 2 . . . . . . . 1 . 1 1 . 3 Parts Lost 107 | . 6 . . . . . . . 11 . 1 . 35 24 . 30 Power 16 | . 1 . . . . . . . 2 . . . 6 4 . 3 Propulsion 27 | . 2 . . . . . . . 5 . . . 8 8 . 4 Utility 40 | . . . . . . . . . 4 . 1 . 12 8 . 15 Weapon 24 | . 3 . . . . . . . . . . . 9 4 . 8 Highest Loss Streak 17 | . 6 . . . . . . . 4 . 1 . 17 15 . 16 Average Slot Usage (%) 64 | . 59 42 46 42 36 44 83 92 85 70 75 80 64 65 26 56 Engine 4 | . 9 . 6 14 9 7 11 15 8 11 10 5 3 . . . Core 2 | . . . . . . . . . . . . 3 4 6 . . Reactor 2 | . . . . . . . . . . . . . 1 4 . 6 Treads 1 | . . . . . . . . . . . . . . 4 . 4 Leg 2 | . 3 . . . . . . . . . . . 2 7 . 1 Hover 3 | . . . . . . . . . 6 11 11 11 8 2 . 1 Flight 6 | . 16 28 28 28 18 19 27 30 18 . . 5 1 . . . Device 11 | . . . 1 . . 3 14 15 12 14 16 11 10 13 15 14 Storage 2 | . 14 14 10 . . 3 7 7 2 1 5 5 3 . . 2 Processor 11 | . . . . . . 1 13 15 22 23 23 23 16 5 10 11 Protection 4 | . . . . . . . . . 5 . . 5 3 9 . 3 Energy Gun 2 | . 13 . . . 7 . . . . . . . 2 2 . 2 Ballistic Gun 1 | . 1 . . . . . . . . . . . . 4 . 2 Slashing Weapon 2 | . . . . . . 1 7 7 5 5 5 5 5 . . . Naked Turns . | . . . . . . . . . . . . . . . . . Heaviest Build 103 | 12 12 4 9 5 8 13 18 18 28 35 35 26 57 86 3 103 Greatest Support 131 | 20 20 8 8 8 8 13 20 20 28 22 22 22 54 100 3 131 Greatest Overweight (x) 18 | . 1 . 1 . . . . . 2 1 1 1 10 3 . 18 Average Overweight (x) . | . . . . . . . . . . 1 . . . . . . Largest Inventory Capacity 6 | 6 6 6 6 4 4 4 4 4 4 4 4 4 4 4 4 4 Average Capacity 4 | 6 6 6 5 4 4 4 4 4 4 4 4 4 4 4 4 4 Most Carried 6 | 6 6 4 5 3 4 4 4 4 4 4 4 4 4 4 4 4 Average Carried 2 | 6 4 3 2 2 3 3 3 4 3 3 3 3 2 2 4 2 Final Capacity 6 | 6 6 6 4 4 4 4 4 4 4 4 4 4 4 4 4 4 Final Carried 6 | 6 2 4 2 3 4 4 4 4 4 3 4 4 3 4 4 . Class Distribution -------------------- 34% | Mutant 22% | Scavenger-Gladiator 18% | Scavenger-Mutant 10% | Scavenger-Tank 5% | Gladiator 3% | Sprinter 3% | Scavenger-Gunner Dominant Class ---------------- Mutant | -10/Materials Mutant | -10/Mines Mutant | -10/Exiles Mutant | -9/Mines Mutant | -8/Materials Mutant | -7/Factory Gladiator | -7/Lower Caves Sprinter | -7/Lower Caves Scavenger-Gladiator | -6/Factory Scavenger-Gladiator | -5/Factory Scavenger-Gladiator | -5/Waste Scavenger-Gladiator | -5/Factory Scavenger-Gladiator | -4/Factory Scavenger-Tank | -4/Extension Mutant | -4/Cetus Mutant | -3/Research Resources | -11 -10 -10 -10 -9 -8 -7 -7 -7 -6 -5 -5 -5 -4 -4 -4 -3 ----------- Run | Scr Mat Min Exi Min Mat Fac Low Low Fac Fac Was Fac Fac Ext Cet Res Matter Collected 2248 | 200 103 . . 35 40 48 72 . 136 . . . 356 673 . 585 Remotely . | . . . . . . . . . . . . . . . . . Salvage Created 4124 | . 221 . . . 78 48 . 159 499 . . . 1351 759 . 1009 Parts 217 | . 17 . . . 6 1 . 6 16 . . . 52 44 . 75 Haulers Intercepted 1 | . . . . . . . . . . . . . 1 . . . Recyclers Shooed 7 | . 1 . . . . . . . 2 . . . 2 2 . . Parts Field Recycled . | . . . . . . . . . . . . . . . . . Retrieved Matter . | . . . . . . . . . . . . . . . . . Parts Self-Destructed 6 | . . . . . . . . 6 . . . . . . . . Prevented 2 | . . . . . . . . 2 . . . . . . . . Kills | -11 -10 -10 -10 -9 -8 -7 -7 -7 -6 -5 -5 -5 -4 -4 -4 -3 ------- Run | Scr Mat Min Exi Min Mat Fac Low Low Fac Fac Was Fac Fac Ext Cet Res Combat Hostiles Destroyed 55 | . 7 . . . 1 . . 3 6 . . . 13 8 . 17 Melee 15 | . . . . . . . . 3 6 . . . 5 . . 1 Guns 26 | . 5 . . . 1 . . . . . . . 4 8 . 8 Cannons 2 | . . . . . . . . . . . . . 1 . . 1 AOE 11 | . 2 . . . . . . . . . . . 2 . . 7 Classes Destroyed 12 | . 3 . . . 2 . . 1 2 . . . 3 . . 1 Worker 4 | . . . . . . . . . . . . . 4 . . . Builder 4 | . . . . . . . . . . . . . 1 2 . 1 Hauler 1 | . . . . . . . . . . . . . 1 . . . Recycler 5 | . . . . . . . . . 1 . . . 2 1 . 1 Operator 2 | . . . . . 1 1 . . . . . . . . . . Watcher 3 | . 1 . . . . 1 . . 1 . . . . . . . Swarmer 9 | . 3 . . . . . . . . . . . . 1 . 5 Grunt 21 | . 4 . . . . . . 2 2 . . . 7 6 . . Duelist 1 | . . . . . . . . 1 . . . . . . . . Sentry 6 | . . . . . 1 . . . 2 . . . 1 . . 2 Hunter 4 | . . . . . . . . . . . . . . . . 4 Programmer 13 | . . . . . . . . . 2 . . . 5 . . 6 Thug 1 | . . . . . . . . . . . . . . 1 . . Best Kill Streak 6 | . 4 . . . 1 1 . 2 2 . . . 6 5 . 6 Combat Bots Only 5 | . 4 . . . 1 . . 2 1 . . . 3 5 . 5 Max Kills in Single Turn 3 | . 1 . . . 1 1 . 1 1 . . . 1 1 . 3 Gunslinging . | . . . . . . . . . . . . . . . . . Exploded 3 | . 1 . . . . . . . . . . . 1 . . 3 Melee 1 | . . . . . . . . 1 1 . . . 1 . . 1 Uniques/NPCs Destroyed . | . . . . . . . . . . . . . . . . . Combat | -11 -10 -10 -10 -9 -8 -7 -7 -7 -6 -5 -5 -5 -4 -4 -4 -3 -------- Run | Scr Mat Min Exi Min Mat Fac Low Low Fac Fac Was Fac Fac Ext Cet Res Damage Taken 13887 | . 507 . . . 145 . 35 33 796 . 58 . 3245 3474 45 5549 Core 2896 | . 173 . . . 73 . . . 171 . 58 . 795 293 24 1309 Absorbed by Shields 293 | . . . . . . . . . . . . . . 293 . . Core Remaining (%) 70 | 100 . . . 30 86 . . 100 79 . . 94 . . 3 . Volleys Fired 199 | . 35 . . . 11 . . . . . . . 47 40 . 66 Largest 4 | . 1 . . . 1 . . . . . . . 2 3 . 4 Hottest 220 | . 40 . . . 45 . . . . . . . 138 183 . 220 Shots Fired 320 | . 35 . . . 11 . . . . . . . 52 109 . 113 Gun 290 | . 34 . . . 11 . . . . . . . 43 105 . 97 Cannon 20 | . . . . . . . . . . . . . 7 4 . 9 Launcher 8 | . 1 . . . . . . . . . . . . . . 7 Special 2 | . . . . . . . . . . . . . 2 . . . Kinetic 148 | . 8 . . . . . . . . . . . 7 64 . 69 Thermal 104 | . 18 . . . . . . . . . . . 36 41 . 9 Explosive 8 | . 1 . . . . . . . . . . . . . . 7 Electromagnetic 58 | . 8 . . . 11 . . . . . . . 7 4 . 28 Robot Hit Streak 17 | . 10 . . . 2 . . . . . . . 11 6 . 17 Robot Miss Streak 5 | . 2 . . . 3 . . . . . . . 3 5 . 4 Penetration Max 1 | . . . . . . . . . . . . . . 1 . . Secondary Targets 4 | . . . . . . . . . . . . . . 2 . 2 Max Gunslinging Chain 1 | . . . . . . . . . . . . . . 1 . 1 Shots Hit Robots 274 | . 25 . . . 5 2 . 5 19 . . . 77 64 . 77 Core Hits 142 | . 14 . . . 3 1 . 3 9 . . . 35 28 . 49 Critical Hits 19 | . . . . . . . . . 1 . . . 11 4 . 3 Critical Kills 7 | . . . . . . . . . . . . . 4 3 . . Critical Parts Destroyed 11 | . . . . . . . . . 1 . . . 7 1 . 2 Melee Attacks 85 | . . . . . . 3 . 5 31 . . . 44 2 . . Impact 2 | . . . . . . 2 . . . . . . . . . . Slashing 83 | . . . . . . 1 . 5 31 . . . 44 2 . . Piercing . | . . . . . . . . . . . . . . . . . Sneak Attacks 13 | . . . . . . . . . 3 . . . 10 . . . Combat Hostiles 1 | . . . . . . . . . 1 . . . . . . . Follow-up Attacks 5 | . . . . . . . . . . . . . 5 . . . Damage Inflicted 11451 | . 413 . . . 89 125 . 275 1372 . . . 4184 1607 . 3386 Guns 4431 | . 255 . . . 89 . . . . . . . 860 1463 . 1764 Cannons 507 | . . . . . . . . . . . . . 199 52 . 256 Explosions 1920 | . 158 . . . . . . . . . . . 443 . . 1319 Melee 4497 | . . . . . . 125 . 275 1372 . . . 2654 71 . . Ramming 96 | . . . . . . . . . . . . . 28 21 . 47 Kinetic 2643 | . 53 . . . . . . . . . . . 199 902 . 1489 Thermal 1782 | . 235 . . . . . . . . . . . 730 561 . 256 Explosive 1799 | . 37 . . . . . . . . . . . 443 . . 1319 Electromagnetic 634 | . 88 . . . 89 . . . . . . . 130 52 . 275 Impact 34 | . . . . . . 34 . . . . . . . . . . Slashing 4463 | . . . . . . 91 . 275 1372 . . . 2654 71 . . Piercing . | . . . . . . . . . . . . . . . . . Highest Corruption 17 | . . . . . . . . . 4 . . . 8 8 8 17 Average Corruption 8 | . . . . . . . . . 2 . . . 3 8 8 14 Corruption Purged . | . . . . . . . . . . . . . . . . . Effects 98 | . . . . . . . . . 4 . . . 6 39 1 48 Message Errors 19 | . . . . . . . . . . . . . 3 9 1 6 Matter Fused 19 | . . . . . . . . . 1 . . . 1 9 . 8 Heat Flow Errors 5 | . . . . . . . . . . . . . . 4 . 1 Energy Discharges 10 | . . . . . . . . . 3 . . . . 3 . 4 Data Loss (minor) 11 | . . . . . . . . . . . . . . 4 . 7 Data Loss (major) 3 | . . . . . . . . . . . . . . 2 . 1 Misfires 1 | . . . . . . . . . . . . . . . . 1 Misdirections 7 | . . . . . . . . . . . . . . . . 7 Targeting Errors 21 | . . . . . . . . . . . . . 1 7 . 13 Weapon Failures 2 | . . . . . . . . . . . . . 1 1 . . Overload Shots . | . . . . . . . . . . . . . . . . . Overflow Damage 1068 | . 30 . . . . 12 . . 326 . . . 531 . . 169 Projectiles 2 | . . . . . . . . . . . . . . . . 2 Explosions 223 | . 30 . . . . . . . . . . . 26 . . 167 Melee 843 | . . . . . . 12 . . 326 . . . 505 . . . Knockbacks 5 | . . . . . . . . . . . . . 5 . . . Impact . | . . . . . . . . . . . . . . . . . Kinetic 3 | . . . . . . . . . . . . . 3 . . . Secondary 2 | . . . . . . . . . . . . . 2 . . . Self-Inflicted Damage 531 | . 79 . . . . . . . . . . . 166 10 . 276 Shots 9 | . 2 . . . . . . . . . . . 2 . . 5 Rammed 30 | . . . . . . . . . . . . . 9 2 . 19 Targets Rammed 36 | . . . . . . . . . . . . . 15 2 . 19 Kicked 6 | . . . . . . . . . . . . . 6 . . . Crushed . | . . . . . . . . . . . . . . . . . Highest Temperature 381 | . 113 . . . 19 . . . . . . . 264 381 . 338 Average Temperature 102 | . 35 . . . 11 . . . . . . . 93 128 . 128 Received Heat Transfer 1732 | . 213 . . . 54 . 18 18 183 . . . 552 475 9 210 Effects 4 | . . . . . . . . . . . . . . 3 . 1 Shutdowns 3 | . . . . . . . . . . . . . . 3 . . Energy Bleed 1 | . . . . . . . . . . . . . . . . 1 Siege Activations . | . . . . . . . . . . . . . . . . . Robots Corrupted 1 | . . . . . . . . . . . . . 1 . . . Combat Hostiles 1 | . . . . . . . . . . . . . 1 . . . Parts Fried 4 | . . . . . . 2 . . . . . . 2 . . . Impact Corruptions 2 | . . . . . . 1 . . . . . . 1 . . . Robots Melted . | . . . . . . . . . . . . . . . . . Combat Hostiles . | . . . . . . . . . . . . . . . . . Parts Melted 5 | . 2 . . . . . . . . . . . 1 . . 2 Heat Transferred 3116 | . 450 . . . . . . . . . . . 1290 1154 . 222 Parts Sabotaged . | . . . . . . . . . . . . . . . . . Parts Stolen . | . . . . . . . . . . . . . . . . . Parts Stripped . | . . . . . . . . . . . . . . . . . Power Chain Reactions 1 | . 1 . . . . . . . . . . . . . . . Missiles Intercepted . | . . . . . . . . . . . . . . . . . Alert | -11 -10 -10 -10 -9 -8 -7 -7 -7 -6 -5 -5 -5 -4 -4 -4 -3 ------- Run | Scr Mat Min Exi Min Mat Fac Low Low Fac Fac Was Fac Fac Ext Cet Res Peak Influence 422 | . 204 79 . . 191 113 . . 261 52 18 5 229 422 158 308 Initial 144 | . . 79 . . . 86 . . 144 52 18 5 2 109 116 94 Average 118 | . 101 79 . . 95 96 . . 168 52 16 5 28 186 131 150 Maximum Alert Level 2 | . 1 . . . . . . . 1 . . . 1 2 . 1 Low Security (%) 76 | 100 91 100 . 100 100 100 . . 61 100 100 100 97 54 100 67 Level 1 22 | . 8 . . . . . . . 38 . . . 2 43 . 32 Level 2 . | . . . . . . . . . . . . . . 2 . . Level 3 . | . . . . . . . . . . . . . . . . . Level 4 . | . . . . . . . . . . . . . . . . . Level 5 . | . . . . . . . . . . . . . . . . . High Security . | . . . . . . . . . . . . . . . . . Max Security . | . . . . . . . . . . . . . . . . . Squads Dispatched 16 | . 1 . . . . . . . 2 . . . 4 2 . 7 Investigation 4 | . . . . . . . . . 1 . . . 1 2 . . Extermination 6 | . . . . . . . . . 1 . . . 2 . . 3 Reinforcement 6 | . 1 . . . . . . . . . . . 1 . . 4 Assault . | . . . . . . . . . . . . . . . . . Garrison . | . . . . . . . . . . . . . . . . . Intercept . | . . . . . . . . . . . . . . . . . Construction Impeded 2 | . . . . . . . . . . . . . . . . 2 Haulers Reinforced 1 | . . . . . . . . . . . . . 1 . . . Stealth | -11 -10 -10 -10 -9 -8 -7 -7 -7 -6 -5 -5 -5 -4 -4 -4 -3 --------- Run | Scr Mat Min Exi Min Mat Fac Low Low Fac Fac Was Fac Fac Ext Cet Res Distress Signals 8 | . 1 . . . 1 . . . 1 . . . . 3 1 1 Communications Jammed . | . . . . . . . . . . . . . . . . . Distress Signals . | . . . . . . . . . . . . . . . . . Times Spotted 149 | . 10 . . . 8 2 6 9 11 . 5 . 21 39 4 34 Peak Tracking Total 11 | . 5 . . . 5 1 7 4 4 . 5 . 6 11 5 9 Tactical Retreats 21 | . . . . . 2 . 2 1 1 . . . 3 9 . 3 Traps | -11 -10 -10 -10 -9 -8 -7 -7 -7 -6 -5 -5 -5 -4 -4 -4 -3 ------- Run | Scr Mat Min Exi Min Mat Fac Low Low Fac Fac Was Fac Fac Ext Cet Res Traps Triggered 6 | . . . . . . . . . 2 1 . . 1 2 . . Indirectly . | . . . . . . . . . . . . . . . . . Trap Hack Attempts . | . . . . . . . . . . . . . . . . . Triggered . | . . . . . . . . . . . . . . . . . Disarmed 3 | . . . . . . . . . . . . . . 3 . . Reprogrammed . | . . . . . . . . . . . . . . . . . Reused . | . . . . . . . . . . . . . . . . . Traps Extracted . | . . . . . . . . . . . . . . . . . Installed . | . . . . . . . . . . . . . . . . . Triggered 3 | . . . . . . . . 3 . . . . . . . . Machines | -11 -10 -10 -10 -9 -8 -7 -7 -7 -6 -5 -5 -5 -4 -4 -4 -3 ---------- Run | Scr Mat Min Exi Min Mat Fac Low Low Fac Fac Was Fac Fac Ext Cet Res Machines Disabled 6 | . 1 . . . . . . . . . . . 4 1 . . Max in Single Turn 3 | . 1 . . . . . . . . . . . 3 1 . . Machines Sabotaged . | . . . . . . . . . . . . . . . . . Garrisons Compromised . | . . . . . . . . . . . . . . . . . Overloaded Fab Kills . | . . . . . . . . . . . . . . . . . Fab Network Shutdowns . | . . . . . . . . . . . . . . . . . Hacking | -11 -10 -10 -10 -9 -8 -7 -7 -7 -6 -5 -5 -5 -4 -4 -4 -3 --------- Run | Scr Mat Min Exi Min Mat Fac Low Low Fac Fac Was Fac Fac Ext Cet Res Machines Accessed 27 | . 1 1 . 1 2 1 . . 3 1 . . 2 14 . 1 Terminals 21 | . 1 . . 1 2 1 . . . . . . 1 14 . 1 Fabricators 3 | . . . . . . . . . 2 1 . . . . . . Repair Stations 1 | . . . . . . . . . 1 . . . . . . . Recycling Units 1 | . . . . . . . . . . . . . 1 . . . Scanalyzers . | . . . . . . . . . . . . . . . . . Garrison Access . | . . . . . . . . . . . . . . . . . Total Hacks 61 | . 6 1 . 1 4 2 . . 5 4 . . 5 31 . 2 Successful 29 | . 4 1 . 1 1 . . . 4 . . . 1 16 . 1 Failed 32 | . 2 . . . 3 2 . . 1 4 . . 4 15 . 1 Catastrophic 6 | . . . . . 1 . . . . 1 . . . 4 . . Database Lockouts . | . . . . . . . . . . . . . . . . . Manual 4 | . . . 1 . 2 . . . 1 . . . . . . . Terminals 47 | . 6 . . 1 4 2 . . . . . . 1 31 . 2 Fabricators 6 | . . . . . . . . . 2 4 . . . . . . Repair Stations 3 | . . . . . . . . . 3 . . . . . . . Recycling Units 4 | . . . . . . . . . . . . . 4 . . . Scanalyzers . | . . . . . . . . . . . . . . . . . Garrison Access . | . . . . . . . . . . . . . . . . . Terminal Hacks 24 | . 4 1 . 1 . . . . . . . . 1 16 . 1 Record 4 | . . . . . . . . . . . . . . 4 . . Prototype ID Bank 1 | . . . . . . . . . . . . . . 1 . . Open Door 7 | . . 1 . . . . . . . . . . 1 5 . . Terminal Index 1 | . . . . . . . . . . . . . . 1 . . Alert Level 2 | . 1 . . . . . . . . . . . . . . 1 Unreport Threat 1 | . . . . . . . . . . . . . . 1 . . Locate Traps 1 | . . . . . . . . . . . . . . 1 . . Disarm Traps 1 | . . . . . . . . . . . . . . 1 . . Maintenance Status 1 | . 1 . . . . . . . . . . . . . . . Registered Components 1 | . 1 . . . . . . . . . . . . . . . Zone Layout 4 | . 1 . . 1 . . . . . . . . . 2 . . Fabricator Hacks 2 | . . . . . . . . . 2 . . . . . . . Network Status 2 | . . . . . . . . . 2 . . . . . . . Repair Station Hacks 2 | . . . . . . . . . 2 . . . . . . . Scan Component 1 | . . . . . . . . . 1 . . . . . . . Repair 1 | . . . . . . . . . 1 . . . . . . . Recycling Unit Hacks . | . . . . . . . . . . . . . . . . . Scanalyzer . | . . . . . . . . . . . . . . . . . Garrison Access Hacks . | . . . . . . . . . . . . . . . . . Unauthorized Hacks 1 | . . . . . 1 . . . . . . . . . . . Terminals 1 | . . . . . 1 . . . . . . . . . . . Operators 1 | . . . . . 1 . . . . . . . . . . . Fabricators . | . . . . . . . . . . . . . . . . . Repair Stations . | . . . . . . . . . . . . . . . . . Recycling Units . | . . . . . . . . . . . . . . . . . Scanalyzers . | . . . . . . . . . . . . . . . . . Garrison Access . | . . . . . . . . . . . . . . . . . Data Cores Recovered 2 | . . . . . 1 1 . . . . . . . . . . Used 1 | . . . . . 1 . . . . . . . . . . . Hacking Detections 18 | . 1 . . 1 2 1 . . 1 1 . . 1 9 . 1 Full Trace Events 4 | . . . . . . . . . 1 . . . 1 2 . . Feedback Events . | . . . . . . . . . . . . . . . . . Feedback Blocked . | . . . . . . . . . . . . . . . . . Robot Schematics Acquired . | . . . . . . . . . . . . . . . . . Robots Built . | . . . . . . . . . . . . . . . . . Matter . | . . . . . . . . . . . . . . . . . Time . | . . . . . . . . . . . . . . . . . Total Robot Build Rating . | . . . . . . . . . . . . . . . . . Part Schematics Acquired . | . . . . . . . . . . . . . . . . . Parts Built . | . . . . . . . . . . . . . . . . . Matter . | . . . . . . . . . . . . . . . . . Time . | . . . . . . . . . . . . . . . . . Total Part Build Rating . | . . . . . . . . . . . . . . . . . Parts Repaired 1 | . . . . . . . . . 1 . . . . . . . Time 22 | . . . . . . . . . 22 . . . . . . . Parts Recycled . | . . . . . . . . . . . . . . . . . Recycled Matter . | . . . . . . . . . . . . . . . . . Retrieved Matter . | . . . . . . . . . . . . . . . . . Retrieved Components . | . . . . . . . . . . . . . . . . . Parts Scanalyzed . | . . . . . . . . . . . . . . . . . Part Schematics Acquired . | . . . . . . . . . . . . . . . . . Parts Damaged . | . . . . . . . . . . . . . . . . . Bothacking | -11 -10 -10 -10 -9 -8 -7 -7 -7 -6 -5 -5 -5 -4 -4 -4 -3 ------------ Run | Scr Mat Min Exi Min Mat Fac Low Low Fac Fac Was Fac Fac Ext Cet Res Used RIF Installer . | . . . . . . . . . . . . . . . . . Robots Hacked 1 | . . . . . . . . . . . . . 1 . . . Non-combat . | . . . . . . . . . . . . . . . . . Combat 1 | . . . . . . . . . . . . . 1 . . . Robot Hacks Applied 1 | . . . . . . . . . . . . . 1 . . . parse_system 1 | . . . . . . . . . . . . . 1 . . . Relay Couplers Released . | . . . . . . . . . . . . . . . . . Robots Rewired . | . . . . . . . . . . . . . . . . . Allies Hacked . | . . . . . . . . . . . . . . . . . Hacks Repelled . | . . . . . . . . . . . . . . . . . Allies | -11 -10 -10 -10 -9 -8 -7 -7 -7 -6 -5 -5 -5 -4 -4 -4 -3 -------- Run | Scr Mat Min Exi Min Mat Fac Low Low Fac Fac Was Fac Fac Ext Cet Res Total Allies 9 | . . . . 3 . . . . . . . . . 6 . . Largest Group 3 | . . . . 3 . . . . . . . . . 2 1 . Highest-Rated Group 149 | . . . . 40 . . . . . . . . . 149 49 . Highest-Rated Ally 149 | . . . . 16 . . . . . . . . . 149 49 . Total Orders . | . . . . . . . . . . . . . . . . . Ally Attacks 64 | . . . . . . . . . . . . . . 59 5 . Total Damage 1769 | . . . . . . . . . . . . . . 1598 171 . Kills 15 | . . . . . . . . . . . . . . 13 2 . Allies Corrupted . | . . . . . . . . . . . . . . . . . Allies Melted . | . . . . . . . . . . . . . . . . . Intel | -11 -10 -10 -10 -9 -8 -7 -7 -7 -6 -5 -5 -5 -4 -4 -4 -3 ------- Run | Scr Mat Min Exi Min Mat Fac Low Low Fac Fac Was Fac Fac Ext Cet Res Robot Analysis Total . | . . . . . . . . . . . . . . . . . Derelict Logs Recovered 4 | . . 1 . . . . 2 1 . . . . . . . . Drone Launches . | . . . . . . . . . . . . . . . . . Drone Recoveries . | . . . . . . . . . . . . . . . . . Exploration | -11 -10 -10 -10 -9 -8 -7 -7 -7 -6 -5 -5 -5 -4 -4 -4 -3 ------------- Run | Scr Mat Min Exi Min Mat Fac Low Low Fac Fac Was Fac Fac Ext Cet Res Turns Passed 5038 | 3 168 97 108 74 167 122 179 102 527 197 161 24 917 1159 28 1005 Spaces Moved 5142 | 3 135 246 217 198 224 265 388 251 551 162 148 21 626 985 55 667 Core 485 | . . . . . . . . . . . . . 44 182 55 204 Treads 250 | . . . . . . . . . . . . . . 82 . 168 Legs 467 | 3 20 . . . . . . . . . . . 104 271 . 69 Wheels 40 | . . . . . . . . . . . . . . . . 40 Hover 1580 | . . . . . . . . . 185 162 148 21 428 450 . 186 Flight 2320 | . 115 246 217 198 224 265 388 251 366 . . . 50 . . . Fastest Speed 31 | 120 37 37 37 37 37 34 31 31 31 116 56 56 40 50 50 50 Average Speed 68 | 120 51 38 46 37 37 35 32 31 62 116 102 101 92 81 50 103 Slowest Speed 950 | 120 120 40 117 37 37 37 34 31 200 116 116 116 550 200 50 950 Overloaded Moves . | . . . . . . . . . . . . . . . . . Propulsion Burnouts . | . . . . . . . . . . . . . . . . . Robots Hopped 4 | . . . . . . . . . 1 . . . 3 . . . Cave-ins Triggered . | . . . . . . . . . . . . . . . . . Exploration Rate (%) 29 | 2 43 43 42 32 25 8 58 27 13 4 78 1 12 81 23 15 Regions Visited 16 Branch Regions 7 Pre-discovered Areas 1 | . . 1 . . . . . . . . . . . . . . Known Exits Taken 1 | . . . . . . . . . 1 . . . . . . . Unknown Exits Taken 13 | 1 1 1 1 1 1 1 1 1 . . . 1 1 1 1 . Scrap Searched 7 | . . . . 3 . . 4 . . . . . . . . . Spaces Dug . | . . . . . . . . . . . . . . . . . Terrain Destroyed 189 | . 16 . . . . . . . . . . . 43 11 . 119 Melee . | . . . . . . . . . . . . . . . . . Projectile 27 | . . . . . . . . . . . . . 4 11 . 12 AOE 162 | . 16 . . . . . . . . . . . 39 . . 107 Terrain Rammed . | . . . . . . . . . . . . . . . . . Walls Destroyed . | . . . . . . . . . . . . . . . . . Machines Disabled . | . . . . . . . . . . . . . . . . . Actions | -11 -10 -10 -10 -9 -8 -7 -7 -7 -6 -5 -5 -5 -4 -4 -4 -3 --------- Run | Scr Mat Min Exi Min Mat Fac Low Low Fac Fac Was Fac Fac Ext Cet Res Total 6255 | 2 203 246 225 198 297 290 439 264 687 175 158 24 846 1257 54 890 Wait 335 | . 5 . . . 48 . 44 7 66 . 2 . 48 85 . 30 Move 5119 | 2 134 245 216 197 223 264 387 250 548 162 147 20 619 984 54 667 Hop 4 | . . . . . . . . . 1 . . . 3 . . . Pick Up 178 | . 6 1 2 1 5 9 4 1 19 2 5 2 25 52 . 44 Fast Attach 1 | . . . . . 1 . . . . . . . . . . . Attach 148 | . 10 . 3 . 3 7 4 . 14 5 2 1 25 35 . 39 Detach 15 | . 4 . 1 . 1 2 . . . 3 . . 2 . . 2 Swap 19 | . 2 . . . 1 . . . 2 . . . 2 10 . 2 Drop 80 | . 7 . 3 . 4 5 . 1 6 3 2 1 3 24 . 21 Fire 199 | . 35 . . . 11 . . . . . . . 47 40 . 66 Melee 79 | . . . . . . 3 . 5 31 . . . 38 2 . . Ram 18 | . . . . . . . . . . . . . . 2 . 16 Kick 18 | . . . . . . . . . . . . . 15 . . 3 Crush . | . . . . . . . . . . . . . . . . . Escape Stasis 36 | . . . . . . . . . . . . . 13 23 . . Rewire 6 | . . . . . . . . . . . . . 6 . . . Trap . | . . . . . . . . . . . . . . . . . Miscellaneous . | . . . . . . . . . . . . . . . . . Route ------- -11/Scrapyard -10/Materials -10/Mines -10/Exiles -9/Mines -8/Materials -7/Factory -7/Lower Caves -7/Lower Caves -6/Factory (discovered 2 exits: *Fac x2) -5/Factory -5/Waste -5/Factory -4/Factory -4/Extension (discovered 2 exits: *Res / [*Cet]) -4/Cetus -3/Research History --------- Turn | Location | Event 1 | -11/Scrapyard | Discovered new exit (range 0) 4 | -11/Scrapyard | Entered Materials 155 | -10/Materials | Core integrity fell below 50% 169 | -10/Materials | Discovered new exit (range 7) 172 | -10/Materials | Entered Mines 182 | -10/Mines | Met a Derelict bent on vengeance 187 | -10/Mines | Lost 6 parts (1p2n3w) 191 | -10/Mines | Found the Drone Emporium 192 | -10/Mines | Found Prototype Device 202 | -10/Mines | Learned location of Storage (-8) 267 | -10/Mines | Deemed a non-threat by the Exiles lab entrance 267 | -10/Mines | Discovered new exit (range 5) 269 | -10/Mines | Entered Exiles 280 | -10/Exiles | Met 8R-AWN 286 | -10/Exiles | Met EX-HEX 297 | -10/Exiles | Met EX-BIN 301 | -10/Exiles | Build established: Mutant 302 | -10/Exiles | Aligned with FarCom system 302 | -10/Exiles | Given EX-Vault access code 311 | -10/Exiles | Opened EX-Vault 313 | -10/Exiles | Found Prototype Device 314 | -10/Exiles | Identified Skeleton Box 318 | -10/Exiles | Found Prototype Device 319 | -10/Exiles | Identified Cloak of Protection 347 | -10/Exiles | Warned to stay clear of 0b10 Research branches 372 | -10/Exiles | Discovered new exit (range 14) 377 | -10/Exiles | Left Exiles lab with Cloak of Protection 377 | -10/Exiles | Entered Mines 403 | -9/Mines | Assisted by bots powering up and referring to "LRC-V3" 446 | -9/Mines | Discovered new exit (range 2) 451 | -9/Mines | Entered Materials 451 | -8/Materials | Evolved 4 slots: Power x1, Propulsion x1, Utility x2 616 | -8/Materials | Discovered new exit (range 5) 618 | -8/Materials | Entered Factory 618 | -7/Factory | Evolved 2 slots: Propulsion x1, Utility x1 726 | -7/Factory | Discovered new exit (range 11) 740 | -7/Factory | Entered Lower Caves 763 | -7/Lower Caves | Encountered a Warlord checkpoint 902 | -7/Lower Caves | Learned Factory terminal intel 909 | -7/Lower Caves | Discovered new exit (range 10) 917 | -7/Lower Caves | Learned 4 Factory zone layouts 919 | -7/Lower Caves | Entered another Lower Caves area 923 | -7/Lower Caves | Learned Factory terminal intel 1019 | -7/Lower Caves | Discovered new exit (range 6) 1021 | -7/Lower Caves | Entered Factory 1021 | -6/Factory | Evolved 2 slots: Utility x2 1022 | -6/Factory | Identified exit to Factory 1023 | -6/Factory | Loaded intel: 20 terminal locations 1101 | -6/Factory | Lost 3 parts (1p1n1u) 1241 | -6/Factory | Repaired Greatsword 1310 | -6/Factory | Lost 4 parts (3n1u) 1490 | -6/Factory | Discovered exit to Factory (range 7) 1548 | -6/Factory | Entered another Factory area 1548 | -5/Factory | Evolved 2 slots: Power x1, Utility x1 1549 | -5/Factory | Loaded intel: 17 terminal locations 1575 | -5/Factory | Build established: Scavenger-Gladiator 1745 | -5/Factory | Sucked down chute 1745 | -5/Factory | Entered Waste 1763 | -5/Waste | Spotted C-40 Crusher 1779 | -5/Waste | Spotted C-40 Crusher 1792 | -5/Waste | Spotted C-40 Crusher 1815 | -5/Waste | Spotted C-40 Crusher 1816 | -5/Waste | Spotted C-40 Crusher 1832 | -5/Waste | Spotted C-40 Crusher 1881 | -5/Waste | Crushed by Compactor (1 part destroyed, 1 dropped) 1889 | -5/Waste | Discovered new exit (range 15) 1906 | -5/Waste | Entered Factory 1924 | -5/Factory | Discovered new exit (range 5) 1930 | -5/Factory | Entered another Factory area 1930 | -4/Factory | Evolved 2 slots: Utility x1, Weapon x1 2533 | -4/Factory | Lost 14 parts (2p3n6u3w) 2811 | -4/Factory | Lost 17 parts (4p3n5u5w) 2820 | -4/Factory | Core integrity fell below 50% 2843 | -4/Factory | Discovered new exit (range 9) 2847 | -4/Factory | Entered Extension 3114 | -4/Extension | Rescued A7 3143 | -4/Extension | Build established: Scavenger-Mutant 3549 | -4/Extension | Build established: Scavenger-Tank 3633 | -4/Extension | Extracted ID and sensor layout for unrecognized location from A7's data core 3646 | -4/Extension | Found Prototype Protection 3647 | -4/Extension | Identified Med. Regenerative Plating 3747 | -4/Extension | Disrupted transfer network 3781 | -4/Extension | Spotted B-86 Titan 3801 | -4/Extension | Spotted B-86 Titan 3826 | -4/Extension | Core integrity fell below 20% 3833 | -4/Extension | Rescued a captive Derelict 3858 | -4/Extension | Rescued a captive Derelict 3861 | -4/Extension | Lost 15 parts (2p4n6u3w) 3917 | -4/Extension | Rescued a captive Derelict 3918 | -4/Extension | Rescued a captive Derelict 3921 | -4/Extension | Lost 6 parts (2p2n1u1w) 3949 | -4/Extension | Rescued a captive Derelict 3950 | -4/Extension | Rescued a captive Derelict 3977 | -4/Extension | Discovered new exit (range 10) 3978 | -4/Extension | Discovered new exit (range 6) 4006 | -4/Extension | Entered Cetus 4006 | -4/Cetus | Accompanied by 1 ally 4014 | -4/Cetus | Spotted Cetus Guard 4014 | -4/Cetus | Spotted Cetus Guard 4014 | -4/Cetus | Spotted Cetus Guard 4026 | -4/Cetus | Discovered new exit (range 16) 4034 | -4/Cetus | Entered Research 4034 | -3/Research | Evolved 2 slots: Utility x1, Weapon x1 4158 | -3/Research | Build established: Mutant 4406 | -3/Research | Lost 3 parts (2u1w) 4421 | -3/Research | System corruption reached 10% 4461 | -3/Research | Lost 3 parts (2u1w) 4681 | -3/Research | Found Fusion Bomb Launcher 4717 | -3/Research | Found Antimissile System 4724 | -3/Research | Found Prototype Launcher 4725 | -3/Research | Identified Tesla Bomb Launcher 4889 | -3/Research | Lost 16 parts (3p3n5u5w) 4979 | -3/Research | Core integrity fell below 50% 5014 | -3/Research | Lost 4 parts (1n3u) 5022 | -3/Research | Core integrity fell below 20% 5039 | -3/Research | Destroyed by S-43 Plague with Heavy Machine Gun Last Messages --------------- 05024_ System corrupted: Energy discharge (-70). 05024_ Slammed into S-43 Plague. 05024_ Destabilizing: System interference. 05024_ Adv. Target Analyzer temporarily disabled. 05025_ Slammed into S-43 Plague. 05026_ S-43 Plague destroyed. 05026_ Adv. Target Analyzer destroyed. 05026_ System corrupted by crushing effect (+1). 05027_ Acquired 40 matter. 05027_ Slammed into S-43 Plague. 05028_ Sml. Battery destroyed. 05029_ Slammed into S-43 Plague. 05029_ Imp. Core Analyzer permanently disabled. 05029_ Destabilizing: Short circuit. 05031_ Slammed into S-43 Plague. 05034_ ALERT: Rogue bot located, Programmers report to Research Zone 6S. 05034_ Slammed into S-43 Plague. 05034_ Destabilizing: Core damaged (-52). 05035_ Dropped Myomer Leg. Map ----- +----------------------------------------------------+ | ?????????????????????????????????????????????????? | | ?????????????????????????????????????????????????? | | ?????????????????????????????????????????????????? | | ?????????????????????????????????????????????????? | | ?????????????????????????????????????????????????? | | ?????????????????????????????????????????????????? | | ?????????????????????????????????????????????????? | | ?????????????????????????????????????????????????? | | ?????????????????????????????????????????????????? | | ?????????????????????????????????????????????????? | | ?????????????????????????????????????????????????? | | ?????????????????????????????????????????????????? | | ########????????###??????????????????????????????? | | ??????? ??????????????????????????????? | | ??????? ??????????????????????????????? | | ??????? ??????????????????????????????? | | #+#?????????????# #??????????????????????????????? | | ????????????????# #??????????????????????????????? | | ????????????????# #??????????????????????????????? | | ????????????????# #??????????????????????????????? | | ????????????????# #??????????????????????????????? | | ????????????????# #????????????????????#?????????? | | ?????????????#### ################# #?????????? | | ?????????????# #?????????? | | ?????????????# #?????????? | | ############## s @ #?????????? | | ss =* == = #?????????? | | ############## ????????? | | ?????????????# ||!######### ?????????? | | ?????????????# |! #???????????? ?????????? | | ?????????????# |! #??????????????????????? | | ?????????????# #??????????????????????? | | ???????????? ! #??????????????????????? | | ???????????#### #??????????????????????? | | ??????????????# #??????????????????????? | | ??????????????# #?o????????????????????? | | ??????????????+ ??????????????????????? | | ??????????????# ######+###?????????????????????? | | ??????????????## ##??????????????????????????????? | | ???????????????# #???????????????????????????????? | | ???????????????# #???????????????????????????????? | | ????????????????+????????????????????????????????? | | ?????????????????????????????????????????????????? | | ?????????????????????????????????????????????????? | | ?????????????????????????????????????????????????? | | ?????????????????????????????????????????????????? | | ?????????????????????????????????????????????????? | | | | | | | +----------------------------------------------------+ Best States ------------- Heat Dissipation 119 Energy Generation 59 Energy Capacity 600 Matter Stores 300 Matter Capacity 300 Sight Range 16 Terrain Scan Range 24 Terrain Scan Density 10 Jamming Range 8 Cloak Strength 5 Power Amplification 20 Additional Mass Support 9 Base Temperature (-) 200 Armor Coverage 1125 Core Shielding 20 Propulsion Shielding 66 Point Defense Rating 240 Thermal Conversion 90 Melee Speed Boost 20 Phase Shifting 5 Evasion (%) 69 Targeting Accuracy 8 Target Analysis 8 Core Analysis 8 Armor Integrity Analysis 33 Recoil Reduction 4 Matter Filtering 30 Salvage Targeting 2 Item Schematics ----------------- None Robot Schematics ------------------ None Fabricated ------------ Nothing Alien Tech Used ----------------- None Achievements -------------- Deadly Force Universal Adapter Challenges ------------ None Game ------ Seed GaussRecyclingElectrolaser Manual? 0 Play Time 01:44:24 Cumulative 41.2 hours Start 2021.12.22 @ 22:55:04 End 2021.12.23 @ 00:44:17 Sessions 1 Manual Loads 0 Difficulty Rogue Special Mode None Game No. 70 Rogue 70 Adventurer 0 Explorer 0 Win Type - Total 0 Types 0/0/0/0/0/0/0/0/0 Lore% 34 Gallery% 46 Achievement% 26 Wizard Run 0 Options --------- ASCII 0 Keyboard 0 Movement Mouse Keybinds 0 Fullscreen 2 Font 20/Terminus Map View 66x50 Tactical HUD 1 Map Filters NONE Filters NONE Steam 1 RUN: d89ac892-58f6-4b3a-b05f-c5a3d49504ce